fUSD/lending_fUSD_20250828
["ID","MTS","AMOUNT","RATE_DAILY","PERIOD"]
[381805712,1756356647172,-400.0,0.00017951,2]
[381805714,1756356647181,-400.0,0.00017951,2]
[381805716,1756356647191,-400.0,0.00017951,2]
[381805718,1756356647200,-400.0,0.00017951,2]
[381805720,1756356647209,-400.0,0.00017951,2]
[381805722,1756356647219,-400.0,0.00017951,2]
[381805724,1756356647228,-400.0,0.00017951,2]
[381805726,1756356647237,-400.0,0.00017951,2]
[381805729,1756356647247,-371.38090762,0.00017951,2]
[381805731,1756356647256,-400.0,0.00017951,2]
[381805732,1756356647265,-400.0,0.00017951,2]
[381805734,1756356647274,-400.0,0.00017951,2]
[381805736,1756356647283,-400.0,0.00017951,2]
[381805738,1756356647292,-1311.302373,0.00017952,2]
[381805740,1756356647301,-77155.8843048,0.00017952,2]
[381805742,1756356647310,-19503.7898909,0.00017952,2]
[381805744,1756356647319,-1258.17607169,0.00017957,2]
[381805746,1756356647328,-200.0,0.00017957,2]
[381805748,1756356647338,-1301.74599,0.00017957,2]
[381805750,1756356647347,-151.80910346,0.00017957,2]
[381805752,1756356647356,-2387.0,0.00017962,2]
[381805754,1756356647365,-1160.79793685,0.00017967,5]
[381805756,1756356647374,-400.0,0.00017967,2]
[381805758,1756356647384,-400.0,0.00017967,2]
[381805760,1756356647393,-400.0,0.00017967,2]
[381805762,1756356647402,-400.0,0.00017967,2]
[381805764,1756356647411,-287.69262476,0.00017967,2]
[381805766,1756356647420,-400.0,0.00017967,2]
[381805768,1756356647429,-331.78510406,0.00017967,2]
[381805770,1756356647438,-400.0,0.00017967,2]
[381805772,1756356647448,-400.0,0.00017967,2]
[381805774,1756356647457,-400.0,0.00017967,2]
[381805776,1756356647466,-400.0,0.00017967,2]
[381805778,1756356647475,-400.0,0.00017967,2]
[381805780,1756356647484,-400.0,0.00017967,2]
[381805782,1756356647493,-400.0,0.00017967,2]
[381805784,1756356647504,-400.0,0.00017967,2]
[381805786,1756356647515,-1792.67,0.00017967,2]
[381805787,1756356647524,-400.0,0.00017967,2]
[381805789,1756356647533,-187.18659224,0.00017967,2]
[381805791,1756356647542,-400.0,0.00017967,2]
[381805793,1756356647552,-400.0,0.00017967,2]
[381805795,1756356647561,-400.0,0.00017967,2]
[381805797,1756356647570,-400.0,0.00017967,2]
[381805799,1756356647580,-400.0,0.00017967,2]
[381805801,1756356647592,-400.0,0.00017967,2]
[381805803,1756356647601,-400.0,0.00017967,2]
[381805805,1756356647610,-400.0,0.00017967,2]
[381805807,1756356647619,-400.0,0.00017967,2]
[381805809,1756356647628,-400.0,0.00017967,2]
[381805811,1756356647637,-400.0,0.00017967,2]
[381805813,1756356647646,-400.0,0.00017967,2]
[381805815,1756356647655,-400.0,0.00017967,2]
[381805817,1756356647665,-400.0,0.00017967,2]
[381805819,1756356647674,-400.0,0.00017967,2]
[381805821,1756356647685,-400.0,0.00017967,2]
[381805823,1756356647694,-400.0,0.00017967,2]
[381805825,1756356647703,-400.0,0.00017967,2]
[381805827,1756356647712,-400.0,0.00017967,2]
[381805829,1756356647721,-400.0,0.00017967,2]
[381805831,1756356647730,-400.0,0.00017967,2]
[381805833,1756356647739,-400.0,0.00017967,2]
[381805835,1756356647748,-400.0,0.00017967,2]
[381805837,1756356647757,-400.0,0.00017967,2]
[381805839,1756356647766,-400.0,0.00017967,2]
[381805841,1756356647776,-400.0,0.00017967,2]
[381805862,1756356647977,-400.0,0.00017967,2]
[381805864,1756356647987,-400.0,0.00017967,2]
[381805866,1756356647996,-400.0,0.00017967,2]
[381805868,1756356648005,-400.0,0.00017967,2]
[381805870,1756356648015,-443.51,0.00017967,2]
[381805872,1756356648024,-400.0,0.00017967,2]
[381805874,1756356648033,-461.81,0.00017967,2]
[381805876,1756356648042,-400.0,0.00017967,2]
[381805878,1756356648051,-150.41156705,0.00017967,2]
[381805880,1756356648060,-416.79,0.00017967,2]
[381805882,1756356648069,-437.80082095,0.00017967,2]
[381805884,1756356648079,-400.0,0.00017967,2]
[381805886,1756356648089,-443.8,0.00017967,2]
[381805888,1756356648098,-578.48,0.00017967,2]
[381805890,1756356648107,-400.0,0.00017967,2]
[381805892,1756356648116,-400.0,0.00017967,2]
[381805893,1756356648130,-400.0,0.00017967,2]
[381805896,1756356648140,-407.54,0.00017967,2]
[381805897,1756356648150,-400.0,0.00017967,2]
[381805900,1756356648160,-400.0,0.00017967,2]
[381805901,1756356648170,-1178.0,0.00017967,2]
[381805903,1756356648180,-482.52,0.00017967,2]
[381805905,1756356648190,-400.0,0.00017967,2]
[381805907,1756356648200,-634.84,0.00017967,2]
[381805909,1756356648210,-561.65,0.00017967,2]
[381805911,1756356648219,-476.0,0.00017968,2]
[381805913,1756356648229,-500.0,0.00017973,2]
[381805915,1756356648239,-500.0,0.00017973,2]
[381805917,1756356648248,-500.26531685,0.00017973,2]
[381805919,1756356648257,-500.0,0.00017973,2]
[381805921,1756356648267,-500.0,0.00017973,2]
[381805923,1756356648277,-500.0,0.00017973,2]
[381805925,1756356648287,-500.0,0.00017973,2]
[381805927,1756356648296,-406.16354798,0.00017973,2]
[381805929,1756356648305,-500.0,0.00017973,2]
[381805931,1756356648314,-834.07556,0.00017986,2]
[381805933,1756356648324,-549.41505634,0.00017986,2]
[381805935,1756356648335,-768.3783781,0.00017988,2]
[381805937,1756356648344,-702.6811961,0.00017988,2]
[381805939,1756356648353,-636.9840142,0.00017988,2]
[381805941,1756356648363,-163.4,0.0001799,2]
[381805943,1756356648373,-7500.0,0.0001799,2]
[381805945,1756356648382,-6399.23211048,0.0001799,2]
[381805946,1756356648391,-247.85393417,0.0001799,2]
[381805948,1756356648400,-247.85393417,0.0001799,2]
[381805950,1756356648410,-476.0,0.00017996,2]
[381805952,1756356648419,-5843.56837883,0.00017997,2]
[381805954,1756356648429,-941.56,0.00017998,2]
[381805956,1756356648438,-400.0,0.00017998,2]
[381805958,1756356648448,-459.44,0.00017998,2]
[381805960,1756356648457,-400.0,0.00017998,2]
[381805962,1756356648467,-647.72,0.00017998,2]
[381805964,1756356648476,-468.92,0.00017998,2]
[381805966,1756356648485,-400.0,0.00017998,2]
[381805968,1756356648494,-400.0,0.00017998,2]
[381805970,1756356648504,-400.0,0.00017998,2]
[381805972,1756356648518,-413.36,0.00017998,2]
[381805974,1756356648527,-666.0,0.00017999,2]
[381805976,1756356648536,-215.94934195,0.00017999,2]
[381805978,1756356648547,-400.0,0.00017999,2]
[381805980,1756356648556,-400.0,0.00017999,2]
[381805982,1756356648566,-400.0,0.00017999,2]
[381805984,1756356648575,-365.5809773,0.00017999,2]
[381805986,1756356648584,-400.0,0.00017999,2]
[381805988,1756356648595,-400.0,0.00017999,2]
[381805990,1756356648605,-400.0,0.00017999,2]
[381805992,1756356648614,-300.0,0.00017999,2]
[381805994,1756356648623,-150.0,0.00017999,2]
[381805996,1756356648632,-300.0,0.00017999,2]
[381805998,1756356648642,-128921.89392282,0.00018,2]
[381806000,1756356648651,-12692.2416076,0.00018,2]
[381806002,1756356648661,-839.0,0.00018,2]
[381806003,1756356648670,-150.0,0.00018,2]
[381806005,1756356648679,-150.0,0.00018,2]
[381806007,1756356648690,-150.0,0.00018,2]
[381806009,1756356648699,-237245.03068828,0.00018,2]
[381806035,1756356648932,-3006.15599267,0.00018,2]
[381806037,1756356648944,-464.27999999,0.00018,2]
[381806039,1756356648955,-4799.9,0.00018,2]
[381811642,1756357156883,-200.355775,0.00016,2]
[381811887,1756357554935,-302.71046615,0.00015,2]
[381811946,1756357615439,-220.17,0.00013699,2]
[381811968,1756357637887,-160.0,0.00017039,7]
[381811969,1756357637995,-40.0,0.00019339,7]
[381812256,1756357832128,-684.923622,0.00016893,2]
[381812257,1756357832149,-315.076378,0.00016893,2]
[381812258,1756357832159,-186.57804023,0.0001692,2]
[381812259,1756357832169,-339.94,0.00016932,2]
[381812260,1756357832178,-62.70158177,0.00016943,7]
[381812261,1756357832193,-97.29841823,0.00016943,7]
[381812262,1756357832203,-150.0,0.0001702,2]
[381812263,1756357832212,-300.0,0.0001702,2]
[381812264,1756357832221,-1200.0,0.0001702,2]
[381812265,1756357832231,-168.36,0.00017021,2]
[381812266,1756357832242,-14114.68320612,0.00017021,2]
[381812285,1756357838065,-250.39149422,0.0001702,2]
[381812286,1756357838074,-455.42904775,0.00017021,2]
[381812287,1756357838086,-315.94122006,0.00017021,2]
[381812288,1756357838179,-1992.15738466,0.00017021,2]
[381812289,1756357838236,-1380.94,0.00017021,2]
[381812290,1756357838247,-11755.84914141,0.00017021,2]
[381812291,1756357838257,-250.0,0.00017053,2]
[381812292,1756357838268,-229.0,0.000171,2]
[381812293,1756357838279,-170.93,0.00017386,2]
[381812294,1756357838288,-300.0,0.000175,6]
[381812295,1756357838299,-396.0,0.00017507,2]
[381812296,1756357838310,-700.0,0.000176,6]
[381812297,1756357838320,-1000.0,0.000177,6]
[381812298,1756357838331,-530.0,0.00017704,2]
[381812299,1756357838340,-881.46536882,0.00017742,2]
[381812300,1756357838349,-29102.75548977,0.0001777,2]
[381812301,1756357838453,-12700.57811002,0.0001777,2]
[381812302,1756357838508,-3153.94450525,0.0001777,2]
[381812466,1756357840249,-417.1758924,0.0001777,2]
[381812468,1756357840261,-2289.99999999,0.0001777,2]
[381812470,1756357840273,-731.25074346,0.0001777,2]
[381812475,1756357840306,-35375.86687092,0.0001777,2]
[381812774,1756357843415,-3623.801544,0.0001777,2]
[381813097,1756357846378,-5319.25,0.0001777,2]
[381813099,1756357846390,-38739.6880567,0.0001777,2]
[381813101,1756357846402,-1849.6851,0.0001777,2]
[381813103,1756357846413,-48463.41552508,0.0001777,2]
[381813105,1756357846426,-40874.1297285,0.0001777,2]
[381813108,1756357846442,-37992.0121414,0.0001777,2]
[381813114,1756357846494,-918.0,0.0001777,2]
[381813117,1756357846505,-1321.3999809,0.0001777,2]
[381813123,1756357846556,-1655.71999993,0.0001777,2]
[381817087,1756357968206,782.16968982,0.0003013,120]
[381817229,1756358705818,157.0,0.000301,120]
[381817230,1756358726265,158.16,0.000301,120]
[381817239,1756358793711,-296.10599629,0.00016199,2]
[381817240,1756358798966,-205.20338486,0.00016199,2]
[381817241,1756358798992,-200.68156914,0.00016199,2]
[381817243,1756358801123,-299.31843086,0.00016199,2]
[381817244,1756358801148,-221.63616268,0.00016199,2]
[381817245,1756358805170,-234.22521844,0.00016199,2]
[381817246,1756358806943,-44.13861888,0.00016199,2]
[381817247,1756358806969,-236.04605735,0.00016199,2]
[381817248,1756358809508,-252.14,0.00016199,2]
[381817249,1756358813828,-11.81394265,0.00016199,2]
[381817250,1756358813853,-488.18605735,0.00016199,2]
[381817251,1756358815482,-11.81394265,0.00016199,2]
[381817252,1756358815726,-145.55506187,0.00016199,2]
[381817253,1756358817067,-354.44493813,0.00016199,2]
[381817254,1756358817092,-45.55506187,0.00016199,2]
[381817255,1756358819141,-304.94664765,0.00016199,2]
[381817256,1756358821057,-149.49829048,0.00016199,2]
[381817257,1756358821082,-102.18172854,0.00016199,2]
[381817258,1756358822633,-150.0,0.00016198,2]
[381817259,1756358822655,-45.05335235,0.00016198,2]
[381817260,1756358824430,-693.7746662,0.00015773,2]
[381817261,1756358827271,-306.2253338,0.00015773,2]
[381817262,1756358829435,-201.82394359,0.00015773,2]
[381817263,1756358832224,-322.17605641,0.00015773,2]
[381817264,1756358832247,-120.94664765,0.00016198,2]
[381817265,1756358832270,-555.05335235,0.00016198,2]
[381817266,1756358833981,-300.0,0.00016198,2]
[381817267,1756358836193,-257.91778498,0.00016198,2]
[381817268,1756358837877,205.0,9.8e-05,2]
[381817269,1756358839026,-87.02886267,0.00016198,2]
[381817270,1756358839051,-397.81827146,0.00016199,2]
[381817271,1756358839078,-498.15286587,0.00016199,2]
[381817272,1756358841228,-1.84713413,0.00016199,2]
[381817273,1756358841254,-256.51144892,0.00016199,2]
[381817274,1756358841952,255.27238042,0.000101,2]
[381817275,1756358844320,-168.0,0.00016199,2]
[381817276,1756358847213,-75.48855108,0.00016199,2]
[381817277,1756358847239,-75.51144892,0.00016199,2]
[381817278,1756358851235,-276.45665143,0.00016199,2]
[381817279,1756358853539,-148.03189965,0.00016199,2]
[381817280,1756358853564,-500.0,0.00016199,2]
[381817281,1756358853589,-58.51144892,0.00016199,2]
[381817282,1756358857012,-409.82097998,0.00016199,2]
[381817283,1756358859890,-168.0,0.00016118,2]
[381817284,1756358863857,-237.884954,0.00016118,2]
[381817285,1756358863884,-31.6675711,0.00016199,2]
[381817286,1756358863910,-6.90412633,0.00016199,2]
[381817287,1756358866254,-369.08369006,0.00016199,2]
[381817288,1756358870134,-124.01218361,0.00016199,2]
[381817289,1756358870158,-49.15350101,0.00016199,2]
[381817290,1756358871927,-168.0,0.00016199,2]
[381817292,1756358876590,-168.0,0.00016199,2]
[381817293,1756358879967,-114.84649899,0.00016199,2]
[381817294,1756358879993,-53.15350101,0.00016199,2]
[381817296,1756358883123,-446.84649899,0.00016199,2]
[381817297,1756358883148,-500.0,0.00016199,2]
[381817298,1756358883173,-53.15350101,0.00016199,2]
[381817299,1756358885160,-250.0,0.00016199,2]
[381817301,1756358886724,-196.84649899,0.00016199,2]
[381817303,1756358886750,-500.0,0.00016199,2]
[381817304,1756358886778,-109.88491548,0.00016199,2]
[381817305,1756358889039,-390.11508452,0.00016199,2]
[381817306,1756358889064,-500.0,0.00016199,2]
[381817307,1756358889418,-500.0,0.00016199,2]
[381817308,1756358889443,-446.36491548,0.00016199,2]
[381817311,1756358894053,-53.63508452,0.00016199,2]
[381817312,1756358894079,-189.25491548,0.00016199,2]
[381817313,1756358913415,400.0,0.0003,120]
[381817314,1756358919887,764.1380943,0.0001421,7]
[381817315,1756358931032,-500.0,0.00016198,2]
[381817316,1756358931066,-500.0,0.00016198,2]
[381817317,1756358931098,-500.0,0.00016198,2]
[381817318,1756358931130,-500.0,0.00016198,2]
[381817319,1756358931161,-500.0,0.00016198,2]
[381817320,1756358931193,-500.0,0.00016198,2]
[381817321,1756358931223,-500.0,0.00016198,2]
[381817322,1756358931254,-500.0,0.00016198,2]
[381817323,1756358931289,-500.0,0.00016198,2]
[381817324,1756358931322,-500.0,0.00016198,2]
[381817325,1756358931354,-500.0,0.00016198,2]
[381817326,1756358931390,-500.0,0.00016198,2]
[381817327,1756358931429,-500.0,0.00016198,2]
[381817328,1756358931460,-500.0,0.00016198,2]
[381817329,1756358931493,-500.0,0.00016198,2]
[381817330,1756358931525,-500.0,0.00016198,2]
[381817331,1756358931556,-500.0,0.00016198,2]
[381817332,1756358931586,-500.0,0.00016198,2]
[381817333,1756358931614,-500.0,0.00016198,2]
[381817334,1756358931644,-500.0,0.00016198,2]
[381817335,1756358931672,-500.0,0.00016198,2]
[381817336,1756358931702,-500.0,0.00016198,2]
[381817337,1756358931732,-457.23828696,0.00016198,2]
[381817338,1756358931760,-537.12808635,0.00016199,2]
[381817339,1756358931788,-173.87691849,0.00016199,2]
[381817340,1756358931816,-200.0,0.000162,2]
[381817341,1756358931844,-150.0,0.000162,2]
[381817342,1756358931872,-150.0,0.000162,2]
[381817343,1756358931900,-150.0,0.000162,2]
[381817344,1756358931928,-150.00000001,0.000162,2]
[381817345,1756358931962,-150.0,0.000162,2]
[381817346,1756358931989,-150.0,0.000162,2]
[381817347,1756358932018,-251.0,0.00016319,2]
[381817348,1756358932047,-500.0,0.00016438,2]
[381817349,1756358932076,-160.0,0.0001653,7]
[381817350,1756358932104,-1000.0,0.00016589,2]
[381817351,1756358932132,-666.0,0.000166,3]
[381817352,1756358932159,-272.0,0.0001667,2]
[381817353,1756358932186,-1200.0,0.0001667,2]
[381817354,1756358932206,-500.0,0.00016674,2]
[381817355,1756358932217,-500.0,0.00016674,2]
[381817356,1756358932233,-500.0,0.00016674,2]
[381817357,1756358932245,-500.0,0.00016674,2]
[381817358,1756358932256,-500.0,0.00016674,2]
[381817359,1756358932267,-500.0,0.00016674,2]
[381817360,1756358932278,-500.0,0.00016674,2]
[381817361,1756358932289,-500.0,0.00016674,2]
[381817362,1756358932300,-500.0,0.00016674,2]
[381817363,1756358932312,-500.0,0.00016674,2]
[381817364,1756358932328,-151.0,0.00016775,2]
[381817365,1756358932337,-349.0,0.00016849,2]
[381817366,1756358932348,-500.0,0.00016849,2]
[381817367,1756358932366,-500.0,0.00016849,2]
[381817368,1756358932377,-500.0,0.00016849,2]
[381817369,1756358932387,-500.0,0.00016849,2]
[381817370,1756358932399,-49.0739,0.00016849,2]
[381817371,1756358932408,-200.0,0.00016901,2]
[381817372,1756358932425,-250.9261,0.00016922,2]
[381817373,1756358932436,-500.0,0.00016922,2]
[381817374,1756358932457,-249.0639,0.00016922,2]
[381817375,1756358932466,-250.9361,0.00016922,2]
[381817376,1756358932482,-500.0,0.00016922,2]
[381817377,1756358932494,-477.8339,0.00016922,2]
[381817378,1756358932503,-22.1661,0.00016922,2]
[381817379,1756358932579,-500.0,0.00016922,2]
[381817380,1756358932652,-500.0,0.00016922,2]
[381817381,1756358932718,-457.23828696,0.00016922,2]
[381817382,1756358932730,-537.12808635,0.00016922,2]
[381817383,1756358932741,-173.87691849,0.00016922,2]
[381817384,1756358932760,-200.0,0.00016922,2]
[381817385,1756358932771,-150.0,0.00016922,2]
[381817386,1756358932787,-150.0,0.00016922,2]
[381817387,1756358932798,-150.0,0.00016922,2]
[381817388,1756358932809,-150.00000001,0.00016922,2]
[381817389,1756358932820,-150.0,0.00016922,2]
[381817390,1756358932831,-150.0,0.00016922,2]
[381817391,1756358932842,-251.0,0.00016922,2]
[381817392,1756358932853,-500.0,0.00016922,2]
[381817393,1756358932865,-160.0,0.00016922,2]
[381817394,1756358932880,-1000.0,0.00016922,2]
[381817395,1756358932891,-666.0,0.00016922,2]
[381817396,1756358932902,-272.0,0.00016922,2]
[381817397,1756358932914,-1200.0,0.00016922,2]
[381817398,1756358932929,-741.3802873,0.00016922,2]
[381817400,1756358957842,-173.87691849,0.00016,2]
[381817420,1756359032300,-65.12308151,0.00016,2]
[381817422,1756359032310,-1000.0,0.00016357,3]
[381817423,1756359032319,-190.82,0.00016714,2]
[381817424,1756359032328,-354.1985087,0.00016809,2]
[381817426,1756359032339,-1200.0,0.00016921,2]
[381817427,1756359032348,-1919.20032089,0.00016922,2]
[381817428,1756359032358,-823.0,0.00016922,2]
[381817429,1756359032367,-150.99,0.00016922,2]
[381817430,1756359032378,-415.17,0.00016922,2]
[381817431,1756359032388,-7683.4,0.00016922,2]
[381817432,1756359032398,-340.33,0.00016922,2]
[381817433,1756359032408,-9999.99,0.00016922,2]
[381817434,1756359032417,-1509.44,0.00016922,2]
[381817435,1756359032426,-8198.71,0.00016922,2]
[381817436,1756359032435,-5765.94,0.00016922,2]
[381817437,1756359032445,-2907.03,0.00016922,2]
[381817438,1756359032454,-150.99,0.00016922,2]
[381817439,1756359032464,-180.63,0.00016965,2]
[381817440,1756359032474,-539.98,0.00017078,2]
[381817441,1756359032483,-1185.58,0.00017078,2]
[381817442,1756359032493,-166.1,0.00017078,2]
[381817443,1756359032503,-150.0,0.00017078,2]
[381817444,1756359032513,-1589.89402345,0.00017082,2]
[381817445,1756359032522,-248.71531821,0.00017082,2]
[381817446,1756359032532,-535.19,0.00017178,2]
[381817447,1756359032542,-150.0,0.00017178,2]
[381817448,1756359032552,-234.0,0.0001718,2]
[381817449,1756359032562,-539.88,0.000172,2]
[381817450,1756359032571,-408.59,0.00017278,2]
[381817451,1756359032581,-195.05335235,0.00017284,2]
[381817452,1756359032591,-209.0,0.0001736,2]
[381817453,1756359032601,-150.0,0.00017378,2]
[381817454,1756359032611,-300.0,0.00017378,2]
[381817455,1756359032620,-2371.16,0.00017378,2]
[381817456,1756359032630,-332.18,0.00017378,2]
[381817457,1756359032640,-817.18,0.00017378,2]
[381817458,1756359032649,-301.43,0.00017378,2]
[381817459,1756359032658,-539.98,0.00017378,2]
[381817460,1756359032668,-199.0,0.00017378,2]
[381817462,1756359032677,-151.0,0.00017382,2]
[381817464,1756359032686,-881.46536882,0.00017384,2]
[381817466,1756359032696,-1079.56,0.000174,2]
[381817468,1756359032705,-255.09937015,0.00017459,2]
[381817470,1756359032715,-10222.02898099,0.000175,2]
[381817472,1756359032724,-150.0,0.000175,2]
[381817474,1756359032733,-200.0,0.000175,6]
[381817476,1756359032743,-500.0,0.00017534,2]
[381817478,1756359032752,-190.82,0.00017549,2]
[381817480,1756359032762,-6025.87933899,0.00017582,2]
[381817482,1756359032772,-169.49754188,0.00017582,2]
[381817484,1756359032782,-4714.3012,0.0001759,2]
[381817486,1756359032791,-1000.0,0.000176,3]
[381817488,1756359032801,-500.0,0.000176,6]
[381817490,1756359032810,-199.0,0.00017613,2]
[381817492,1756359032820,-6025.87933895,0.00017617,2]
[381817494,1756359032829,-409.82097998,0.0001762,2]
[381817496,1756359032839,-1000.0,0.00017628,2]
[381817499,1756359032848,-6025.87933895,0.00017653,2]
[381817501,1756359032858,-207.4,0.00017671,2]
[381817508,1756359033115,-346.92554585,0.00017671,2]
[381817509,1756359033126,-160.0,0.00017671,2]
[381817510,1756359033136,-1000.0,0.00017671,2]
[381817511,1756359033147,-151.0,0.00017671,2]
[381817512,1756359033156,-1000.0,0.00017671,2]
[381817513,1756359033167,-151.0,0.00017671,2]
[381817514,1756359033176,-1000.0,0.00017671,2]
[381817515,1756359033187,-300.0,0.00017671,2]
[381817516,1756359033196,-300.0,0.00017671,2]
[381817517,1756359033206,-250.0,0.00017671,2]
[381817518,1756359033216,-151.0,0.00017671,2]
[381817519,1756359033226,-151.0,0.00017671,2]
[381817520,1756359033235,-151.0,0.00017671,2]
[381817521,1756359033245,-285.53234465,0.00017671,2]
[381817522,1756359033254,-500.0,0.00017671,2]
[381817523,1756359033264,-613.46588952,0.00017671,2]
[381817524,1756359033273,-646.65982734,0.00017671,2]
[381817525,1756359033282,-300.0,0.00017671,2]
[381817526,1756359033292,-500.0,0.00017671,2]
[381817527,1756359033302,-74680.2092059,0.00017682,2]
[381817528,1756359033311,-23987.9030378,0.00017682,2]
[381817529,1756359033321,-6025.87933895,0.00017688,2]
[381817530,1756359033330,-350.8,0.000177,2]
[381817531,1756359033341,-173.76,0.000177,2]
[381817532,1756359033350,-700.0,0.000177,6]
[381817533,1756359033360,-370.15,0.000177,2]
[381817534,1756359033370,-6025.87933895,0.00017723,2]
[381817535,1756359033379,-500.0,0.00017726,2]
[381817536,1756359033390,-209.0,0.0001773,2]
[381817537,1756359033399,-500.0,0.00017752,2]
[381817538,1756359033409,-6025.87933895,0.00017759,2]
[381817539,1756359033419,-120704.91505602,0.0001777,2]
[381817540,1756359033432,-662.94393352,0.0001777,2]
[381817541,1756359033483,-375.98966044,0.00016921,2]
[381817542,1756359033493,-25368.05043584,0.0001777,2]
[381817543,1756359033503,-265.31333896,0.0001777,2]
[381817544,1756359033513,-500.0,0.00017781,2]
[381817545,1756359033522,-6025.87933895,0.00017794,2]
[381817546,1756359033531,-2000.0,0.000178,2]
[381817547,1756359033542,-1000.0,0.000178,6]
[381817548,1756359033551,-374.43406684,0.00017814,2]
[381817549,1756359033561,-250.0,0.00017819,2]
[381817550,1756359033571,-251.0,0.0001782,2]
[381817551,1756359033581,-1030.0,0.0001782,2]
[381817552,1756359033590,-1097.45727581,0.00017829,2]
[381817553,1756359033659,-4928.42206314,0.00017829,2]
[381817554,1756359033669,-500.0,0.00017836,2]
[381817555,1756359033679,-150.0,0.0001784,2]
[381817556,1756359033688,-150.0,0.0001784,2]
[381817557,1756359033698,-150.0,0.0001784,2]
[381817558,1756359033708,-151.21750139,0.0001784,2]
[381817559,1756359033717,-150.0,0.0001784,2]
[381817560,1756359033727,-254.04818204,0.0001784,2]
[381817561,1756359033737,-150.0,0.0001784,2]
[381817562,1756359033746,-150.0,0.0001784,2]
[381817563,1756359033755,-150.0,0.0001784,2]
[381817564,1756359033765,-150.37197322,0.0001784,2]
[381817565,1756359033775,-150.77393967,0.0001784,2]
[381817566,1756359033784,-150.0,0.0001784,2]
[381817567,1756359033795,-150.7012266,0.0001784,2]
[381817568,1756359033804,-150.0,0.0001784,2]
[381817569,1756359033814,-150.0,0.0001784,2]
[381817570,1756359033824,-150.0,0.0001784,2]
[381817571,1756359033833,-150.0,0.0001784,2]
[381817572,1756359033843,-279.07908718,0.0001784,2]
[381817573,1756359033852,-150.0,0.0001784,2]
[381817574,1756359033862,-150.0,0.0001784,2]
[381817575,1756359033872,-150.0,0.0001784,2]
[381817576,1756359033881,-150.866688,0.0001784,2]
[381817577,1756359033892,-150.0,0.0001784,2]
[381817578,1756359033901,-150.0,0.0001784,2]
[381817579,1756359033911,-150.0,0.0001784,2]
[381817580,1756359033921,-207.59910372,0.0001784,2]
[381817581,1756359033930,-216.0,0.0001784,2]
[381817582,1756359033940,-150.0,0.0001784,2]
[381817583,1756359033949,-791.0,0.0001784,2]
[381817584,1756359033959,-250.53125029,0.0001784,2]
[381817585,1756359033969,-150.0,0.0001784,2]
[381817586,1756359033983,-500.0,0.0001784,2]
[381817587,1756359033992,-150.0,0.0001784,2]
[381817588,1756359034002,-150.0,0.0001784,2]
[381817589,1756359034012,-150.0,0.0001784,2]
[381817590,1756359034022,-150.0,0.0001784,2]
[381817591,1756359034032,-201.50835654,0.0001784,2]
[381817592,1756359034041,-150.0,0.0001784,2]
[381817593,1756359034052,-150.0,0.0001784,2]
[381817594,1756359034061,-150.0,0.0001784,2]
[381817595,1756359034071,-150.0,0.0001784,2]
[381817596,1756359034080,-150.0,0.0001784,2]
[381817597,1756359034089,-500.0,0.0001784,2]
[381817598,1756359034099,-200.0,0.00017856,2]